Cogmind - Beta 14 @@@ ROGUE MODE // 2024.11.17 @ 14:59:27 Player: Arzon Result: Destroyed by Y-54 Guardian with Gatling Laser Performance ------------- Evolutions (0) 0 Regions Visited (4) 800 Robots Destroyed (41) 205 Value Destroyed (785) 785 Prototype IDs (3) 60 Alien Tech Used (0) 0 Bonus (0) 0 TOTAL SCORE: 1850 Bonus ------- None Cogmind --------- Core Integrity 0/250 Matter 184/300 Energy 100/100 System Corruption 3% Temperature Warm (100) Movement Walking (120) Location -7/Recycling Parts ------- > --- POWER (1) -------- (None) > --- PROPULSION (2) --- Aluminum Leg Aluminum Leg > --- UTILITY (2) ------ Medium Storage Unit Hacking Suite > --- WEAPON (2) ------- Shotgun Shotgun > --- INVENTORY (10) --- Targeting Computer Recoil Stabilizer Light Armor Plating High-powered Tractor Beam Light Cannon Light Cannon Mining Laser Peak State ------------ > --- POWER ------------ Improved Ion Engine > --- PROPULSION ------- Aluminum Leg Aluminum Leg > --- UTILITY ---------- Medium Storage Unit Hacking Suite > --- WEAPON ----------- Shotgun Shotgun > --- INVENTORY -------- Ion Engine Aluminum Leg Aluminum Leg Light Armor Plating Assault Rifle Assault Rifle Shotgun Light Cannon Light Cannon Mining Laser [Rating: 13] Favorites ----------- Power Ion Engine Engine Ion Engine Propulsion Aluminum Leg Treads Light Treads Leg Aluminum Leg Utility Medium Storage Unit Device Heat Sink Storage Medium Storage Unit Processor Transport Network Coupler Hackware Hacking Suite Weapon Light Cannon Energy Gun Small Laser Ballistic Gun Shotgun Ballistic Cannon Light Cannon Build | -11 -10 -10 -10 -7 ------- Run | Yrd Mat Min Sub Rec Slots Evolved . | . . . . . Power . | . . . . . Propulsion . | . . . . . Utility . | . . . . . Weapon . | . . . . . Parts Attached 40 | 7 22 6 5 . Power 7 | 1 3 2 1 . Engine 7 | 1 3 2 1 . Core . | . . . . . Reactor . | . . . . . Propulsion 13 | 2 9 . 2 . Treads 2 | . 2 . . . Leg 11 | 2 7 . 2 . Wheel . | . . . . . Hover . | . . . . . Flight . | . . . . . Utility 6 | 1 5 . . . Device 2 | . 2 . . . Storage 2 | 1 1 . . . Processor 1 | . 1 . . . Hackware 1 | . 1 . . . Protection . | . . . . . Artifact . | . . . . . Weapon 14 | 3 5 4 2 . Energy Gun 3 | 2 1 . . . Energy Cannon . | . . . . . Ballistic Gun 9 | 1 4 2 2 . Ballistic Cannon 2 | . . 2 . . Launcher . | . . . . . Special Weapon . | . . . . . Impact Weapon . | . . . . . Slashing Weapon . | . . . . . Piercing Weapon . | . . . . . Special Melee Weapon . | . . . . . Unidentified Prototypes . | . . . . . Parts Lost 4 | . 1 . 2 1 Power 3 | . 1 . 1 1 Propulsion 1 | . . . 1 . Utility . | . . . . . Weapon . | . . . . . Highest Loss Streak 1 | . 1 . 1 1 To Critical Strikes . | . . . . . Average Slot Usage (%) 98 | . 97 100 99 95 Engine 13 | . 12 14 13 9 Leg 28 | . 28 28 28 28 Device 1 | . 3 . . . Storage 14 | . 14 14 14 14 Processor 3 | . 8 . . . Hackware 9 | . 1 14 14 14 Energy Gun 3 | . 9 . . . Ballistic Gun 11 | . 18 6 . 28 Ballistic Cannon 13 | . . 21 27 . Peak Build Rating 13 | 6 12 13 12 12 Average Rating 9 | 4 8 11 10 11 On Entrance 8 | . 6 12 11 12 Naked Turns . | . . . . . Heaviest Build 23 | 13 21 23 23 21 Greatest Support 20 | 20 20 20 20 20 Greatest Overweight (x) 1 | . 1 1 1 1 Average Overweight (x) . | . . 1 . . Largest Inventory Capacity 10 | 8 10 10 10 10 Average Capacity 9 | 7 9 10 10 10 Most Carried 10 | 5 10 10 10 7 Average Carried 8 | 3 8 9 7 7 Final Capacity 10 | 8 10 10 10 10 Final Carried 10 | 3 10 10 7 7 Class Distribution -------------------- 86% | Scavenger-Mutant 13% | Mutant Dominant Class ---------------- Scavenger-Mutant | -10/Materials Scavenger-Mutant | -10/Mines Scavenger-Mutant | -10/Subcaves Scavenger-Mutant | -7/Recycling Resources | -11 -10 -10 -10 -7 ----------- Run | Yrd Mat Min Sub Rec Matter Collected 1160 | 270 385 230 64 211 Remotely . | . . . . . Salvage Created 1572 | 90 890 165 21 406 Parts 67 | . 37 11 4 15 Haulers Intercepted 2 | . 2 . . . Recyclers Shooed 11 | . 5 1 . 5 Parts Field Recycled . | . . . . . Retrieved Matter . | . . . . . Parts Self-Destructed 4 | . . . 4 . Prevented . | . . . . . Kills | -11 -10 -10 -10 -7 ------- Run | Yrd Mat Min Sub Rec Combat Hostiles Destroyed 23 | . 11 7 4 1 Guns 16 | . 11 4 . 1 Cannons 7 | . . 3 4 . Classes Destroyed 9 | 1 5 . 1 2 Builder 1 | . . . . 1 Hauler 2 | . 2 . . . Recycler 9 | 1 4 . . 4 Operator 1 | . 1 . . . Turret 2 | . . . 2 . Watcher 3 | . 3 . . . Swarmer 10 | . 3 3 4 . Grunt 12 | . 8 4 . . Sentry 1 | . . . . 1 Best Kill Streak 5 | 1 3 3 4 5 Combat Bots Only 4 | . 3 3 4 1 Max Kills in Single Turn 2 | 1 2 1 1 2 Gunslinging . | . . . . . Exploded . | . . . . . Melee . | . . . . . Uniques/NPCs Destroyed . | . . . . . Combat | -11 -10 -10 -10 -7 -------- Run | Yrd Mat Min Sub Rec Hostile Shots Fired 294 | . 73 25 121 75 Missed 105 | . 19 10 47 29 Damage Taken 1655 | . 626 155 530 344 Core 256 | . 138 44 48 26 Absorbed by Shields . | . . . . . Regen/Repaired (Parts) 57 | . 57 . . . Core Remaining (%) 100 | 100 . . . . Volleys Fired 150 | 4 86 19 22 19 Largest 2 | 2 2 2 2 2 Hottest 80 | 80 80 70 70 46 Shots Fired 299 | 8 173 36 44 38 Gun 237 | 8 173 18 . 38 Cannon 62 | . . 18 44 . Launcher . | . . . . . Special . | . . . . . Kinetic 165 | . 47 36 44 38 Thermal 130 | 4 126 . . . Explosive . | . . . . . Electromagnetic 4 | 4 . . . . Robot Hit Streak 12 | 3 12 5 5 5 Robot Miss Streak 5 | 1 4 4 5 2 Penetration Max . | . . . . . Secondary Targets 1 | . 1 . . . Max Gunslinging Chain 1 | . 1 . . . Shots Hit Robots 195 | 5 120 18 22 30 Core Hits 82 | 1 42 11 8 20 Critical Kills . | . . . . . Critical Parts Destroyed 3 | . 1 1 . 1 Critical Strikes 4 | . 1 1 1 1 Destroy 3 | . 1 1 . 1 Blast 1 | . . . 1 . Melee Attacks . | . . . . . Impact . | . . . . . Slashing . | . . . . . Piercing . | . . . . . Sneak Attacks . | . . . . . Combat Hostiles . | . . . . . Follow-up Attacks . | . . . . . Damage Inflicted 2795 | 68 1456 315 457 499 Guns 2171 | 68 1456 148 . 499 Cannons 624 | . . 167 457 . Explosions . | . . . . . Melee . | . . . . . Ramming . | . . . . . Kinetic 1702 | . 431 315 457 499 Thermal 1037 | 12 1025 . . . Explosive . | . . . . . Electromagnetic 56 | 56 . . . . Impact . | . . . . . Slashing . | . . . . . Piercing . | . . . . . Highest Corruption 3 | . 3 3 3 3 Average Corruption 2 | . 2 3 3 3 Corruption Purged . | . . . . . Corruption Blocked . | . . . . . Effects 57 | . 16 31 7 3 Message Errors 22 | . 7 13 2 . Matter Fused 10 | . 3 4 2 1 Heat Flow Errors 7 | . 1 4 1 1 Energy Discharges 3 | . 1 1 . 1 Parts Fused 1 | . . 1 . . Data Loss (minor) 6 | . 3 2 1 . Data Loss (major) 3 | . . 2 1 . Misfires 2 | . 1 1 . . Alerts 1 | . . 1 . . Weapon Failures 2 | . . 2 . . Overload Shots . | . . . . . Overflow Damage 11 | . . . 11 . Projectiles 11 | . . . 11 . Explosions . | . . . . . Melee . | . . . . . Knockbacks 10 | . . 2 8 . Impact . | . . . . . Kinetic 10 | . . 2 8 . Secondary . | . . . . . Self-Inflicted Damage . | . . . . . Shots . | . . . . . Rammed . | . . . . . Targets Rammed . | . . . . . Kicked . | . . . . . Crushed . | . . . . . Highest Temperature 287 | 72 269 279 235 287 Average Temperature 80 | 38 63 90 100 140 Received Heat Transfer 792 | . 360 72 252 108 Effects 3 | . 1 . . 2 Interference 3 | . 1 . . 2 Siege Activations . | . . . . . Robots Corrupted . | . . . . . Combat Hostiles . | . . . . . Parts Fried 1 | 1 . . . . Impact Corruptions . | . . . . . Robots Melted . | . . . . . Combat Hostiles . | . . . . . Parts Melted 3 | . 3 . . . Heat Transferred 2350 | 25 2325 . . . Parts Sabotaged . | . . . . . Parts Stolen . | . . . . . Parts Stripped . | . . . . . Power Chain Reactions . | . . . . . Alert | -11 -10 -10 -10 -7 ------- Run | Yrd Mat Min Sub Rec Peak Influence 199 | 5 199 150 . 79 Initial 38 | . 3 . . 38 Average 47 | 1 69 30 . 49 Maximum Alert Level . | . . . . . Low Security (%) 100 | 100 100 100 . 100 Level 1 . | . . . . . Level 2 . | . . . . . Level 3 . | . . . . . Level 4 . | . . . . . Level 5 . | . . . . . High Security . | . . . . . Max Security . | . . . . . Squads Dispatched 3 | . 2 1 . . Investigation 2 | . 1 1 . . Extermination . | . . . . . Reinforcement 1 | . 1 . . . Assault . | . . . . . Garrison . | . . . . . Intercept . | . . . . . Searches Triggered . | . . . . . Construction Impeded . | . . . . . Haulers Reinforced . | . . . . . Active Scanning Responses . | . . . . . Cargo Convoy Interrupts . | . . . . . Stealth | -11 -10 -10 -10 -7 --------- Run | Yrd Mat Min Sub Rec Distress Signals 3 | . 2 . . 1 Communications Jammed . | . . . . . Distress Signals . | . . . . . Times Spotted 45 | . 19 12 12 2 Peak Tracking Total 6 | . 4 3 6 2 Tactical Retreats 6 | . . 3 3 . Traps | -11 -10 -10 -10 -7 ------- Run | Yrd Mat Min Sub Rec Traps Triggered 3 | . 3 . . . Indirectly . | . . . . . Trap Hack Attempts . | . . . . . Triggered . | . . . . . Disarmed 6 | . 6 . . . Reprogrammed . | . . . . . Reused . | . . . . . Traps Extracted . | . . . . . Installed . | . . . . . Triggered 2 | . . . 2 . Machines | -11 -10 -10 -10 -7 ---------- Run | Yrd Mat Min Sub Rec Machines Disabled 3 | . . 1 2 . Max in Single Turn 1 | . . 1 1 . Machines Repaired . | . . . . . Machines Dismantled . | . . . . . Machines Sabotaged . | . . . . . Overloaded Fab Kills . | . . . . . Hacking | -11 -10 -10 -10 -7 --------- Run | Yrd Mat Min Sub Rec Machines Accessed 7 | . 6 1 . . Terminals 5 | . 5 . . . Fabricators . | . . . . . Repair Stations 1 | . 1 . . . Recycling Units . | . . . . . Scanalyzers . | . . . . . Garrison Access . | . . . . . Total Hacks 21 | . 20 1 . . Successful 14 | . 13 1 . . Failed 7 | . 7 . . . Catastrophic 3 | . 3 . . . Database Lockouts . | . . . . . Manual 8 | . 8 . . . Terminals 16 | . 16 . . . Fabricators . | . . . . . Repair Stations 4 | . 4 . . . Recycling Units . | . . . . . Scanalyzers . | . . . . . Garrison Access . | . . . . . Terminal Hacks 10 | . 9 1 . . Prototype ID Bank 2 | . 2 . . . Open Door 1 | . . 1 . . Level Access Points 1 | . 1 . . . Branch Access Points 1 | . 1 . . . Emergency Access Points 2 | . 2 . . . Locate Traps 1 | . 1 . . . Disarm Traps 1 | . 1 . . . Registered Components 1 | . 1 . . . Fabricator Hacks . | . . . . . Repair Station Hacks 4 | . 4 . . . Scan Component 2 | . 2 . . . Repair 2 | . 2 . . . Recycling Unit Hacks . | . . . . . Scanalyzer . | . . . . . Garrison Access Hacks . | . . . . . Unauthorized Hacks . | . . . . . Terminals . | . . . . . Fabricators . | . . . . . Repair Stations . | . . . . . Recycling Units . | . . . . . Scanalyzers . | . . . . . Garrison Access . | . . . . . Data Cores Recovered . | . . . . . Used . | . . . . . Hacking Detections 5 | . 5 . . . Full Trace Events 1 | . 1 . . . Feedback Events . | . . . . . Feedback Blocked . | . . . . . Robot Schematics Acquired . | . . . . . Robots Built . | . . . . . Authchips . | . . . . . Time . | . . . . . Total Robot Build Rating . | . . . . . Part Schematics Acquired . | . . . . . Parts Built . | . . . . . Authchips . | . . . . . Time . | . . . . . Total Part Build Rating . | . . . . . Parts Repaired 2 | . 2 . . . Time 52 | . 52 . . . Parts Recycled . | . . . . . Recycled Matter . | . . . . . Retrieved Matter . | . . . . . Retrieved Components . | . . . . . Parts Scanalyzed . | . . . . . Part Schematics Acquired . | . . . . . Parts Damaged . | . . . . . Bothacking | -11 -10 -10 -10 -7 ------------ Run | Yrd Mat Min Sub Rec Used RIF Installer . | . . . . . Robots Hacked . | . . . . . Non-combat . | . . . . . Combat . | . . . . . Robot Hacks Applied . | . . . . . Relay Couplers Released . | . . . . . Fabnet Peak Effective % . | . . . . . Robots Rewired . | . . . . . Allies Hacked . | . . . . . Hacks Repelled . | . . . . . Allies | -11 -10 -10 -10 -7 -------- Run | Yrd Mat Min Sub Rec Total Allies . | . . . . . Largest Group . | . . . . . Highest-Rated Group . | . . . . . Highest-Rated Ally . | . . . . . Total Orders . | . . . . . Ally Attacks . | . . . . . Total Damage . | . . . . . Kills . | . . . . . Allies Corrupted . | . . . . . Allies Melted . | . . . . . Intel | -11 -10 -10 -10 -7 ------- Run | Yrd Mat Min Sub Rec Robot Analysis Total . | . . . . . Derelict Logs Recovered 3 | . . 2 1 . Drone Launches . | . . . . . Drone Recoveries . | . . . . . Exploration | -11 -10 -10 -10 -7 ------------- Run | Yrd Mat Min Sub Rec Turns Passed 3588 | 84 1312 1588 449 155 Spaces Moved 1692 | 56 589 794 200 53 Core 15 | 15 . . . . Treads . | . . . . . Legs 1677 | 41 589 794 200 53 Wheels . | . . . . . Hover . | . . . . . Flight . | . . . . . Fastest Speed 50 | 50 120 190 120 120 Average Speed 171 | 101 147 190 188 176 Slowest Speed 190 | 120 190 190 190 190 Overloaded Moves . | . . . . . Propulsion Burnouts . | . . . . . Robots Hopped . | . . . . . Cave-ins Triggered . | . . . . . Exploration Rate (%) 39 | 4 78 100 7 6 Regions Visited 4 Branch Regions 3 Pre-discovered Areas 3 | . . 3 . . Known Exits Taken 1 | . 1 . . . Unknown Exits Taken 3 | 1 . 1 1 . Scrap Searched 2 | . . 2 . . Spaces Dug . | . . . . . Terrain Destroyed 1 | . . . 1 . Melee . | . . . . . Projectile 1 | . . . 1 . AOE . | . . . . . Terrain Rammed . | . . . . . Walls Destroyed . | . . . . . Machines Disabled . | . . . . . Actions | -11 -10 -10 -10 -7 --------- Run | Yrd Mat Min Sub Rec Total 2084 | 75 864 841 227 77 Wait 126 | . 114 7 . 5 Move 1688 | 55 588 793 199 53 Hop . | . . . . . Pick Up 50 | 9 33 8 . . Fast Attach . | . . . . . Attach 11 | 6 3 . 2 . Detach . | . . . . . Swap 29 | 1 19 6 3 . Drop 30 | . 21 8 1 . Fire 150 | 4 86 19 22 19 Melee . | . . . . . Ram . | . . . . . Kick . | . . . . . Crush . | . . . . . Escape Stasis . | . . . . . Rewire . | . . . . . Trap . | . . . . . Miscellaneous . | . . . . . Route ------- -11/Scrapyard -10/Materials (discovered 4 exits: *Mat x3 / *Min) -10/Mines (discovered 3 exits: *Mat x2 / [*Sub]) -10/Subcaves -7/Recycling History --------- Turn | Location | Event 27 | -11/Scrapyard | Discovered new exit (range 16) 85 | -11/Scrapyard | Entered Materials 201 | -10/Materials | Discovered new exit (range 9) 302 | -10/Materials | Build established: Mutant 578 | -10/Materials | Identified exit to Mines 611 | -10/Materials | Core integrity fell below 50% 703 | -10/Materials | Discovered new exit (range 15) 729 | -10/Materials | Build established: Scavenger-Mutant 1023 | -10/Materials | Discovered new exit (range 16) 1032 | -10/Materials | Identified exit to Materials 1320 | -10/Materials | Repaired Ion Engine 1348 | -10/Materials | Repaired Aluminum Leg 1397 | -10/Materials | Entered Mines 1398 | -10/Mines | Learned location of Storage (-7) 1454 | -10/Mines | Discovered exit to Materials (range 11) 1588 | -10/Mines | Discovered exit to Materials (range 5) 1751 | -10/Mines | Joined a pair of Derelicts in attacking an 0b10 outpost 1854 | -10/Mines | Received a Rocket Launcher from a helpful Derelict 2274 | -10/Mines | Met a Derelict shopkeep closing up shop 2966 | -10/Mines | Discovered new exit (range 9) 2985 | -10/Mines | Entered Subcaves 3096 | -10/Subcaves | Discovered new exit (range 10) 3104 | -10/Subcaves | Core integrity fell below 20% 3434 | -10/Subcaves | Entered Recycling 3435 | -7/Recycling | Met a Zionite searching for Scraptown 3589 | -7/Recycling | Destroyed by Y-54 Guardian with Gatling Laser Last Messages --------------- Y-54 Guardian destroyed. R-06 Scavenger collects Imp. Heat Sink. Acquired 51 matter. R-06 Scavenger destroyed. R-06 Scavenger collects Sml. Storage Unit. U-05 Engineer builds a Door. Acquired 44 matter. R-06 Scavenger destroyed. U-05 Engineer destroyed. R-06 Scavenger collects Imp. Heat Sink. R-06 Scavenger destroyed. System corrupted: Heat flow error (+297). Y-54 Guardian springs to life. R-06 Scavenger collects Wheel. R-06 Scavenger collects Sml. Storage Unit. R-06 Scavenger collects Tractor Beam. R-06 Scavenger collects Com. Wheel. R-06 Scavenger collects Sml. Storage Unit. Overheating: System interference. Shotgun temporarily disabled. Map ----- +----------------------------------------------------+ | ?????????????????????????????????????????????????? | | ?????????????????????????????????????????????????? | | ?????????????????????????????????????????????????? | | ?????????????????????????????????????????????????? | | ?????????????????????????????????????????????????? | | ?????????????????????????????????????????????????? | | ?????????????????????????????????????????????????? | | ?????????????????????????????????????????????????? | | ?????????????????????????????????????????????????? | | ?????????????????????????????????????????????????? | | ???????????????????????? ????????????????????????? | | ???????????????????????? ????????????????????????? | | ???????????????????????? ????????????????????????? | | ???????????????????????? ????????????????????????? | | ???????????????????????? ????????????????????????? | | ???????????????????????? ????????????????????????? | | ???????????????????????? ????????????????????????? | | ??????????????????###### #???????????????????????? | | ??????????????????# # ???????????????????????? | | ??????????????????# # #???????????????????????? | | ??????????????????# # #???????????????????????? | | ??????????????????# #=#???????????????????????? | | ?????????????????## #%#???????????????????????? | | ?????????????????# ! #=#???????????????????????? | | ?????????????????## #Y##??????????????????????? | | ??????????????????# #r@#??????????????????????? | | ??????????????????# #!##??????????????????????? | | ??????????????????# !#%#???????????????????????? | | ??????????????????# #!####????????????????????? | | ??????????????????# =/ % #????????????????????? | | ??????????????????# [# #????????????????????? | | ??????????????????# #### #????????????????????? | | ??????????????????###??# #????????????????????? | | ??????????????# ######## ######???????????????? | | ??????????? #???????????????? | | ??????????? #???????????????? | | ??????????? #???????????????? | | ???????????#############+#########???????????????? | | ?????????????????????????????????????????????????? | | ?????????????????????????????????????????????????? | | ?????????????????????????????????????????????????? | | ?????????????????????????????????????????????????? | | ?????????????????????????????????????????????????? | | ?????????????????????????????????????????????????? | | ?????????????????????????????????????????????????? | | ?????????????????????????????????????????????????? | | ?????????????????????????????????????????????????? | | | | | | | +----------------------------------------------------+ Best States ------------- Heat Dissipation 39 Energy Generation 12 Energy Capacity 265 Matter Stores 300 Matter Capacity 300 Sight Range 16 Terrain Scan Density 10 Evasion (%) 55 Offensive Hacking 10 Item Schematics ----------------- None Robot Schematics ------------------ None Fabricated ------------ Nothing Alien Tech Used ----------------- None Achievements -------------- None Challenges ------------ None Game ------ Seed AlertCobblerLance Manual? 0 Play Time 00:36:55 Cumulative 13.6 hours Start 2024.11.17 @ 14:23:42 End 2024.11.17 @ 14:59:27 Sessions 1 Manual Loads 0 Difficulty Rogue Special Mode None Game No. 14 Rogue 14 Adventurer 0 Explorer 0 Win Type - Total 0 Types 0/0/0/0/0/0/0/0/0 Lore% 10 Gallery% 12 Achievement% 15 Wizard Run 0 Options --------- Layout 1 ASCII 0 Keyboard 0 Movement Mouse Keybinds 0 Fullscreen 1 Font 48/Smallcaps Map View 50x35 Zoom Use 0% Tactical HUD 0 Map Filters NONE Filters NONE Steam 1 RUN: ab32a80e-a7d2-40c6-ae85-764649ca87e6